fUST/lending_fUST_20250824
["ID","MTS","AMOUNT","RATE_DAILY","PERIOD"]
[381103804,1756043452917,-480.0,0.00051506,120]
[381103805,1756043452927,-480.0,0.00051506,120]
[381103806,1756043452937,-480.0,0.00051506,120]
[381103807,1756043452947,-480.0,0.00051506,120]
[381103808,1756043452956,-480.0,0.00051506,120]
[381103809,1756043452965,-480.0,0.00051506,120]
[381103810,1756043452975,-480.0,0.00051506,120]
[381103811,1756043452984,-480.0,0.00051506,120]
[381103812,1756043452993,-480.0,0.00051506,120]
[381103813,1756043453004,-480.0,0.00051506,120]
[381103814,1756043453013,-489.38,0.00051506,120]
[381103815,1756043453022,-480.0,0.00051506,120]
[381103816,1756043453032,-480.0,0.00051506,120]
[381103817,1756043453041,-480.0,0.00051506,120]
[381103818,1756043453051,-1190.34,0.00051506,120]
[381103819,1756043453060,-1282.6,0.00051506,120]
[381103820,1756043453069,-480.0,0.00051506,120]
[381103821,1756043453078,-480.39097825,0.00051506,120]
[381103822,1756043453087,-552.45,0.00051506,120]
[381103823,1756043453097,-480.0,0.00051506,120]
[381103824,1756043453107,-151.0,0.00051506,120]
[381103825,1756043453116,-2102.59,0.00051506,120]
[381103826,1756043453126,-480.0,0.00051506,120]
[381103827,1756043453135,-151.0,0.00051506,120]
[381103828,1756043453145,-480.0,0.00051506,120]
[381103829,1756043453154,-480.0,0.00051506,120]
[381103830,1756043453163,-480.0,0.00051506,120]
[381103831,1756043453173,-480.0,0.00051506,120]
[381103832,1756043453182,-500.78,0.00051506,120]
[381103833,1756043453191,-2350.49,0.00051506,120]
[381103834,1756043453367,-845.33,0.00051506,120]
[381103835,1756043453377,-2082.32,0.00051506,120]
[381103836,1756043453387,-480.0,0.00051506,120]
[381103837,1756043453396,-480.0,0.00051506,120]
[381103838,1756043453405,-480.0,0.00051506,120]
[381103839,1756043453414,-755.74,0.00051506,120]
[381103840,1756043453424,-480.0,0.00051506,120]
[381103841,1756043453434,-480.0,0.00051506,120]
[381103842,1756043453444,-480.0,0.00051506,120]
[381103843,1756043453454,-1000.0,0.00051506,120]
[381103844,1756043453463,-480.0,0.00051506,120]
[381103845,1756043453473,-629.099186,0.00051506,120]
[381103846,1756043453482,-480.0,0.00051506,120]
[381103847,1756043453492,-644.86,0.00051506,120]
[381103848,1756043453502,-2075.28,0.00051506,120]
[381103849,1756043453512,-480.0,0.00051506,120]
[381103850,1756043453521,-480.0,0.00051506,120]
[381103851,1756043453530,-1084.13,0.00051506,120]
[381103852,1756043453539,-480.0,0.00051506,120]
[381103853,1756043453548,-1270.21,0.00051506,120]
[381103854,1756043453558,-779.42,0.00051506,120]
[381103855,1756043453567,-1078.8,0.00051506,120]
[381103856,1756043453577,-480.0,0.00051506,120]
[381103857,1756043453586,-597.33,0.00051506,120]
[381103858,1756043453595,-480.0,0.00051506,120]
[381103859,1756043453604,-624.43,0.00051506,120]
[381103860,1756043453613,-816.01,0.00051506,120]
[381103861,1756043453622,-781.0,0.00051506,120]
[381103862,1756043453631,-485.32,0.00051506,120]
[381103863,1756043453641,-480.0,0.00051506,120]
[381103864,1756043453650,-480.0,0.00051506,120]
[381103865,1756043453660,-480.0,0.00051506,120]
[381103866,1756043453669,-1604.84,0.00051506,120]
[381103867,1756043453678,-563.04,0.00051506,120]
[381103868,1756043453687,-860.38,0.00051506,120]
[381103869,1756043453697,-2422.58,0.00051506,120]
[381103870,1756043453707,-480.0,0.00051506,120]
[381103871,1756043453716,-10520.47,0.00051506,120]
[381103872,1756043453725,-480.0,0.00051506,120]
[381103873,1756043453734,-1143.32,0.00051506,120]
[381103874,1756043453744,-487.29,0.00051506,120]
[381103875,1756043453754,-480.0,0.00051506,120]
[381103876,1756043453764,-3434.28,0.00051506,120]
[381103877,1756043453774,-480.0,0.00051506,120]
[381103878,1756043453783,-480.0,0.00051506,120]
[381103879,1756043453793,-480.0,0.00051506,120]
[381103880,1756043453803,-364.74665423,0.00051506,120]
[381103881,1756043453813,-480.0,0.00051506,120]
[381103882,1756043453822,-480.0,0.00051506,120]
[381103883,1756043453832,-480.0,0.00051506,120]
[381103884,1756043453841,-594.1,0.00051506,120]
[381103885,1756043453850,-480.0,0.00051506,120]
[381103886,1756043453859,-1384.78,0.00051506,120]
[381103887,1756043453869,-1560.63,0.00051506,120]
[381103888,1756043453879,-3635.97,0.00051506,120]
[381103889,1756043453888,-480.0,0.00051506,120]
[381103890,1756043453898,-461.27594301,0.00051506,120]
[381103891,1756043453907,-480.0,0.00051506,120]
[381103892,1756043453917,-847.03,0.00051506,120]
[381103893,1756043453927,-483.57987101,0.00051506,120]
[381103894,1756043453936,-480.0,0.00051506,120]
[381103895,1756043453945,-520.78693277,0.00051506,120]
[381103896,1756043453955,-480.0,0.00051506,14]
[381103897,1756043453964,-175.009375,0.00051506,120]
[381103898,1756043453974,-480.0,0.00051506,120]
[381103899,1756043453984,-2082.79,0.00051506,120]
[381103900,1756043453993,-480.0,0.00051506,120]
[381103901,1756043454003,-10613.83,0.00051506,120]
[381103902,1756043454012,-175.009375,0.00051506,120]
[381103903,1756043454022,-2211.76,0.00051506,120]
[381103904,1756043454031,-480.0,0.00051506,120]
[381103905,1756043454040,-175.009375,0.00051506,120]
[381103906,1756043454050,-1478.89,0.00051506,120]
[381103907,1756043454060,-786.95,0.00051506,120]
[381103908,1756043454070,-480.0,0.00051506,120]
[381103909,1756043454079,-480.0,0.00051506,120]
[381103910,1756043454088,-151.0,0.00051506,120]
[381103911,1756043454097,-7433.82,0.00051506,120]
[381103912,1756043454107,-175.009366,0.00051506,120]
[381103913,1756043454116,-151.0,0.00051506,120]
[381103914,1756043454125,-1632.0,0.00051506,30]
[381103915,1756043454135,-151.0,0.00051506,120]
[381103916,1756043454144,-151.0,0.00051506,120]
[381103917,1756043454154,-1153.11,0.00051506,120]
[381103918,1756043454163,-480.0,0.00051506,120]
[381103919,1756043454172,-480.0,0.00051506,120]
[381103920,1756043454181,-151.0,0.00051506,120]
[381103921,1756043454191,-480.0,0.00051506,120]
[381103922,1756043454200,-151.0,0.00051506,120]
[381103923,1756043454210,-151.0,0.00051506,120]
[381103924,1756043454219,-1380.01,0.00051506,120]
[381103925,1756043454228,-4671.06,0.00051506,120]
[381103926,1756043454238,-842.2,0.00051506,120]
[381103927,1756043454247,-1302.77,0.00051506,120]
[381103928,1756043454257,-856.53,0.00051506,120]
[381103929,1756043454266,-480.0,0.00051506,120]
[381103930,1756043454276,-1864.61,0.00051506,120]
[381103931,1756043454286,-1449.37,0.00051506,120]
[381103932,1756043454295,-3545.14,0.00051506,120]
[381103933,1756043454304,-480.0,0.00051506,120]
[381103934,1756043454313,-607.85,0.00051506,120]
[381103935,1756043454322,-1217.22,0.00051506,120]
[381103936,1756043454332,-502.56,0.00051506,120]
[381103937,1756043454344,-480.0,0.00051506,120]
[381103938,1756043454353,-480.0,0.00051506,120]
[381103939,1756043454363,-151.0,0.00051506,120]
[381103940,1756043454372,-1239.53,0.00051506,60]
[381103941,1756043454382,-4627.05,0.00051506,120]
[381103942,1756043454393,-1530.58,0.00051506,120]
[381103943,1756043454402,-151.0,0.00051506,120]
[381103944,1756043454412,-480.0,0.00051506,120]
[381103945,1756043454422,-480.0,0.00051506,120]
[381103946,1756043454432,-1228.06,0.00051506,120]
[381103947,1756043454441,-151.0,0.00051506,120]
[381103948,1756043454451,-500.0,0.00051506,120]
[381103949,1756043454460,-500.0,0.00051506,120]
[381103950,1756043454470,-5552.92,0.00051506,120]
[381103951,1756043454480,-500.0,0.00051506,120]
[381103952,1756043454490,-500.0,0.00051506,120]
[381103953,1756043454499,-500.0,0.00051506,120]
[381103954,1756043454509,-500.0,0.00051506,120]
[381103955,1756043454519,-500.0,0.00051506,120]
[381103956,1756043454529,-500.0,0.00051506,120]
[381103957,1756043454538,-771.53,0.00051506,120]
[381103958,1756043454547,-500.0,0.00051506,120]
[381103959,1756043454557,-500.0,0.00051506,120]
[381103960,1756043454566,-500.0,0.00051506,120]
[381103961,1756043454575,-500.0,0.00051506,120]
[381103962,1756043454585,-500.0,0.00051506,120]
[381103963,1756043454594,-480.0,0.00051506,120]
[381103964,1756043454603,-968.64,0.00051506,120]
[381103965,1756043454612,-500.0,0.00051506,120]
[381103966,1756043454622,-453.154846,0.00051506,120]
[381103967,1756043454631,-500.0,0.00051506,120]
[381103968,1756043454640,-480.0,0.00051506,120]
[381103969,1756043454649,-500.0,0.00051506,120]
[381103970,1756043454658,-500.0,0.00051506,120]
[381103971,1756043454667,-500.0,0.00051506,120]
[381103972,1756043454676,-480.0,0.00051506,120]
[381103973,1756043454686,-1734.65,0.00051506,120]
[381103974,1756043454695,-500.0,0.00051506,120]
[381103975,1756043454704,-183.75994324,0.00051506,120]
[381103976,1756043454713,-480.0,0.00051506,120]
[381103977,1756043454723,-953.81,0.00051506,120]
[381103978,1756043454732,-480.0,0.00051506,120]
[381103979,1756043454741,-1408.83,0.00051506,120]
[381103980,1756043454750,-715.9,0.00051506,120]
[381103981,1756043454759,-1160.29,0.00051506,120]
[381103982,1756043454768,-480.0,0.00051506,120]
[381103983,1756043454778,-480.0,0.00051506,120]
[381103984,1756043454787,-1767.3,0.00051506,120]
[381103985,1756043454796,-841.43,0.00051506,120]
[381103986,1756043454805,-480.0,0.00051506,120]
[381103987,1756043454814,-297.696646,0.00051506,120]
[381103988,1756043454824,-1004.33,0.00051506,120]
[381103989,1756043454832,-450.1782722,0.00051506,120]
[381103990,1756043454842,-643.27,0.00051506,120]
[381103991,1756043454851,-297.696646,0.00051506,120]
[381103992,1756043454860,-532.85,0.00051506,120]
[381103993,1756043454870,-480.0,0.00051506,120]
[381103994,1756043454879,-480.0,0.00051506,120]
[381103995,1756043454888,-480.0,0.00051506,120]
[381103996,1756043454897,-645.52,0.00051506,120]
[381103997,1756043454906,-151.0,0.00051506,120]
[381103998,1756043454916,-297.696646,0.00051506,120]
[381103999,1756043454926,-151.0,0.00051506,120]
[381104000,1756043454939,-541.93,0.00051506,120]
[381104001,1756043454948,-480.0,0.00051506,120]
[381104002,1756043454957,-297.696646,0.00051506,120]
[381104003,1756043454967,-480.0,0.00051506,120]
[381104004,1756043454976,-789.32,0.00051506,120]
[381104005,1756043454985,-650.12,0.00051506,120]
[381104006,1756043454994,-1324.44,0.00051506,120]
[381104007,1756043455004,-1045.71,0.00051506,120]
[381104008,1756043455014,-480.0,0.00051506,120]
[381104009,1756043455023,-2889.89,0.00051506,120]
[381104010,1756043455032,-480.0,0.00051506,120]
[381104011,1756043455042,-610.78560006,0.00051506,120]
[381104012,1756043455052,-1822.91,0.00051506,120]
[381104013,1756043455061,-513.5688292,0.00051506,120]
[381104014,1756043455071,-3842.76,0.00051506,120]
[381104015,1756043455080,-629.56,0.00051506,120]
[381104016,1756043455090,-1026.67,0.00051506,120]
[381104017,1756043455100,-151.0,0.00051506,30]
[381104018,1756043455110,-1065.97,0.00051506,120]
[381104019,1756043455119,-1863.19,0.00051506,120]
[381104020,1756043455128,-151.0,0.00051506,30]
[381104021,1756043455138,-961.15,0.00051506,120]
[381104022,1756043455148,-1134.84,0.00051506,120]
[381104023,1756043455157,-151.0,0.00051506,30]
[381104024,1756043455167,-480.0,0.00051506,120]
[381104025,1756043455176,-2604.19,0.00051506,120]
[381104026,1756043455186,-1649.37,0.00051506,120]
[381104027,1756043455195,-480.0,0.00051506,120]
[381104028,1756043455204,-480.0,0.00051506,120]
[381104029,1756043455214,-480.0,0.00051506,120]
[381104030,1756043455224,-480.0,0.00051506,120]
[381104031,1756043455233,-2829.25,0.00051506,120]
[381104032,1756043455242,-3896.97,0.00051506,120]
[381104033,1756043455252,-480.0,0.00051506,7]
[381104034,1756043455262,-480.0,0.00051506,120]
[381104035,1756043455271,-1683.13,0.00051506,120]
[381104036,1756043455280,-14670.77,0.00051506,120]
[381104037,1756043455290,-442.8924566,0.00051506,120]
[381104038,1756043455298,-480.0,0.00051506,120]
[381104039,1756043455308,-620.09,0.00051506,120]
[381104040,1756043455317,-480.0,0.00051506,120]
[381104041,1756043455326,-1334.73,0.00051506,120]
[381104042,1756043455338,-480.0,0.00051506,120]
[381104043,1756043455348,-460.32578701,0.00051506,120]
[381104044,1756043455357,-480.0,0.00051506,120]
[381104045,1756043455366,-480.0,0.00051506,120]
[381104046,1756043455376,-480.0,0.00051506,120]
[381104047,1756043455385,-480.0,0.00051506,120]
[381104048,1756043455394,-480.0,0.00051506,120]
[381104049,1756043455404,-1265.84,0.00051506,120]
[381104050,1756043455413,-1022.57,0.00051506,120]
[381104051,1756043455423,-676.2,0.00051506,120]
[381104052,1756043455432,-492.39,0.00051506,120]
[381104053,1756043455441,-7654.91,0.00051506,3]
[381104054,1756043455451,-480.0,0.00051506,120]
[381104055,1756043455467,-480.0,0.00051506,120]
[381104056,1756043455476,-480.0,0.00051506,120]
[381104057,1756043455486,-480.0,0.00051506,120]
[381104058,1756043455496,-480.0,0.00051506,120]
[381104059,1756043455506,-480.0,0.00051506,120]
[381104060,1756043455515,-480.0,0.00051506,120]
[381104061,1756043455525,-3527.71,0.00051506,120]
[381104062,1756043455534,-480.0,0.00051506,120]
[381104063,1756043455543,-480.0,0.00051506,120]
[381104064,1756043455553,-480.0,0.00051506,7]
[381104065,1756043455562,-480.0,0.00051506,120]
[381104066,1756043455571,-480.0,0.00051506,120]
[381104067,1756043455580,-480.0,0.00051506,120]
[381104068,1756043455589,-2152.93,0.00051506,120]
[381104069,1756043455598,-8842.35,0.00051506,120]
[381104070,1756043455607,-554.24,0.00051506,120]
[381104071,1756043455616,-480.0,0.00051506,120]
[381104072,1756043455625,-480.0,0.00051506,120]
[381104073,1756043455634,-5051.95,0.00051506,120]
[381104074,1756043455643,-480.0,0.00051506,120]
[381104075,1756043455653,-819.2,0.00051506,120]
[381104076,1756043455662,-480.0,0.00051506,120]
[381104077,1756043455671,-995.31,0.00051506,120]
[381104078,1756043455680,-480.0,0.00051506,120]
[381104079,1756043455689,-480.0,0.00051506,120]
[381104080,1756043455699,-2807.09,0.00051506,120]
[381104081,1756043455708,-3035.11,0.00051506,120]
[381104082,1756043455717,-1256.24,0.00051506,120]
[381104083,1756043455727,-2252.94,0.00051506,120]
[381104084,1756043455736,-480.0,0.00051506,120]
[381104085,1756043455745,-1150.58,0.00051506,120]
[381104086,1756043455755,-166.05918141,0.00051506,120]
[381104087,1756043455765,-480.0,0.00051506,120]
[381104088,1756043455776,-480.0,0.00051506,120]
[381104089,1756043455785,-480.0,0.00051506,120]
[381104090,1756043455794,-480.0,0.00051506,120]
[381104091,1756043455805,-480.0,0.00051506,120]
[381104092,1756043455814,-4113.52,0.00051506,30]
[381104093,1756043455824,-480.0,0.00051506,120]
[381104094,1756043455834,-480.0,0.00051506,120]
[381104095,1756043455843,-678.98,0.00051506,120]
[381104096,1756043455853,-717.76,0.00051506,120]
[381104097,1756043455863,-2888.25,0.00051506,120]
[381104098,1756043455872,-1178.07,0.00051506,120]
[381104099,1756043455881,-500.0,0.00051506,120]
[381104100,1756043455891,-157.940769,0.00051506,120]
[381104101,1756043455901,-500.0,0.00051506,120]
[381104102,1756043455910,-480.0,0.00051506,120]
[381104103,1756043455919,-500.0,0.00051506,120]
[381104104,1756043455930,-2868.59,0.00051506,120]
[381104105,1756043455941,-480.0,0.00051506,120]
[381104106,1756043455951,-492.95372918,0.00051506,120]
[381104107,1756043455961,-480.0,0.00051506,120]
[381104108,1756043455970,-157.940769,0.00051506,120]
[381104109,1756043455979,-4661.54,0.00051506,120]
[381104110,1756043455988,-157.940769,0.00051506,120]
[381104111,1756043455998,-2995.39,0.00051506,120]
[381104112,1756043456009,-480.0,0.00051506,120]
[381104113,1756043456020,-157.940772,0.00051506,120]
[381104114,1756043456030,-3702.75,0.00051506,120]
[381104115,1756043456039,-392.60115851,0.00051506,120]
[381104116,1756043456049,-1331.44,0.00051506,120]
[381104117,1756043456058,-3036.13,0.00051506,21]
[381104118,1756043456068,-9741.1,0.00051506,120]
[381104119,1756043456077,-1081.61,0.00051506,120]
[381104120,1756043456087,-480.0,0.00051506,120]
[381104121,1756043456096,-480.0,0.00051506,120]
[381104122,1756043456105,-25250.31,0.00051506,120]
[381104123,1756043456114,-969.18,0.00051506,120]
[381104124,1756043456124,-461.131286,0.00051506,120]
[381104125,1756043456134,-480.0,0.00051506,120]
[381104126,1756043456143,-1916.46,0.00051506,120]
[381104127,1756043456153,-480.0,0.00051506,120]
[381104128,1756043456163,-624.67,0.00051506,120]
[381104129,1756043456172,-480.0,0.00051506,120]
[381104130,1756043456181,-480.0,0.00051506,120]
[381104131,1756043456191,-480.0,0.00051506,120]
[381104132,1756043456200,-10663.55,0.00051506,120]
[381104133,1756043456210,-6763.32,0.00051506,120]
[381104134,1756043456220,-500.0,0.00051506,120]
[381104135,1756043456230,-615.78,0.00051506,120]
[381104136,1756043456240,-500.0,0.00051506,120]
[381104137,1756043456251,-500.0,0.00051506,120]
[381104138,1756043456261,-501.99635272,0.00051506,120]
[381104139,1756043456270,-997.51,0.00051506,120]
[381104140,1756043456280,-480.0,0.00051506,120]
[381104141,1756043456289,-480.0,0.00051506,120]
[381104142,1756043456299,-11246.8,0.00051506,120]
[381104143,1756043456308,-997.51,0.00051506,120]
[381104144,1756043456318,-997.51,0.00051506,120]
[381104145,1756043456327,-609.29,0.00051506,120]
[381104146,1756043456337,-997.51,0.00051506,120]
[381104147,1756043456349,-480.0,0.00051506,120]
[381104148,1756043456359,-997.51,0.00051506,120]
[381104149,1756043456369,-480.0,0.00051506,120]
[381104150,1756043456378,-480.0,0.00051506,120]
[381104151,1756043456388,-750.42,0.00051506,120]
[381104152,1756043456398,-480.0,0.00051506,120]
[381104153,1756043456407,-997.51,0.00051506,120]
[381104154,1756043456416,-480.0,0.00051506,120]
[381104155,1756043456427,-1232.19,0.00051506,120]
[381104156,1756043456437,-32523.85,0.00051506,120]
[381104157,1756043456446,-997.51,0.00051506,120]
[381104158,1756043456455,-480.0,0.00051506,120]
[381104159,1756043456465,-997.51,0.00051506,120]
[381104160,1756043456474,-480.0,0.00051506,120]
[381104161,1756043456484,-997.51,0.00051506,120]
[381104162,1756043456493,-997.51,0.00051506,120]
[381104163,1756043456503,-997.51,0.00051506,120]
[381104164,1756043456513,-728.13,0.00051506,120]
[381104165,1756043456522,-997.51,0.00051506,120]
[381104166,1756043456532,-997.51,0.00051506,120]
[381104167,1756043456541,-997.51,0.00051506,120]
[381104168,1756043456550,-151.0,0.00051506,15]
[381104169,1756043456561,-997.51,0.00051506,120]
[381104170,1756043456570,-997.51,0.00051506,120]
[381104171,1756043456580,-997.51,0.00051506,120]
[381104172,1756043456589,-987.42,0.00051506,120]
[381104173,1756043456756,-997.51,0.00051506,120]
[381104174,1756043456767,-997.51,0.00051506,120]
[381104175,1756043456777,-480.0,0.00051506,120]
[381104176,1756043456786,-997.51,0.00051506,120]
[381104177,1756043456795,-529.09613939,0.00051506,120]
[381104178,1756043456805,-480.0,0.00051506,120]
[381104179,1756043456814,-997.51,0.00051506,120]
[381104180,1756043456824,-480.0,0.00051506,120]
[381104181,1756043456833,-997.51,0.00051506,120]
[381104182,1756043456842,-480.0,0.00051506,120]
[381104183,1756043456852,-1973.82,0.00051506,120]
[381104184,1756043456861,-997.51,0.00051506,120]
[381104185,1756043456871,-997.70105042,0.00051506,120]
[381104186,1756043456881,-1391.74,0.00051506,120]
[381104187,1756043456890,-512.68,0.00051506,120]
[381104188,1756043456900,-480.0,0.00051506,120]
[381104189,1756043456909,-1457.19,0.00051506,120]
[381104190,1756043456919,-510.67148661,0.00051506,120]
[381104191,1756043456928,-480.0,0.00051506,120]
[381104192,1756043456937,-480.0,0.00051506,120]
[381104193,1756043456947,-480.0,0.00051506,120]
[381104194,1756043456956,-603.25,0.00051506,120]
[381104195,1756043456966,-480.0,0.00051506,120]
[381104196,1756043456975,-480.0,0.00051506,120]
[381104197,1756043456984,-490.72,0.00051506,120]
[381104198,1756043456993,-480.0,0.00051506,120]
[381104199,1756043457003,-760.43,0.00051506,120]
[381104200,1756043457012,-822.12,0.00051506,120]
[381104201,1756043457021,-480.74,0.00051506,120]
[381104202,1756043457031,-480.0,0.00051506,120]
[381104203,1756043457041,-480.0,0.00051506,120]
[381104204,1756043457050,-3092.9,0.00051506,120]
[381104205,1756043457060,-480.0,0.00051506,120]
[381104206,1756043457069,-4757.11,0.00051506,120]
[381104207,1756043457079,-1367.75,0.00051506,120]
[381104208,1756043457090,-151.0,0.00051506,120]
[381104209,1756043457100,-1372.69,0.00051506,120]
[381104210,1756043457109,-629.55914989,0.00051506,120]
[381104211,1756043457119,-165.11748574,0.00051506,120]
[381104212,1756043457129,-480.0,0.00051506,120]
[381104213,1756043457139,-31227.24,0.00051506,120]
[381104214,1756043457149,-462.04264354,0.00051506,120]
[381104215,1756043457158,-1660.3,0.00051506,120]
[381104216,1756043457168,-768.85,0.00051506,120]
[381104217,1756043457178,-1074.93,0.00051506,120]
[381104218,1756043457187,-1552.6,0.00051506,120]
[381104219,1756043457197,-897.76,0.00051506,120]
[381104220,1756043457206,-480.0,0.00051506,120]
[381104221,1756043457216,-158.02387166,0.00051506,120]
[381104222,1756043457225,-523.47,0.00051506,120]
[381104223,1756043457234,-884.66,0.00051506,120]
[381104224,1756043457245,-480.0,0.00051506,2]
[381104225,1756043457255,-480.0,0.00051506,120]
[381104226,1756043457264,-480.0,0.00051506,120]
[381104227,1756043457274,-4751.57,0.00051506,120]
[381104228,1756043457283,-480.0,0.00051506,120]
[381104229,1756043457292,-775.12,0.00051506,120]
[381104230,1756043457301,-565.89,0.00051506,120]
[381104231,1756043457311,-607.75,0.00051506,120]
[381104232,1756043457320,-151.0,0.00051506,120]
[381104233,1756043457330,-214.069436,0.00051506,120]
[381104234,1756043457343,-2418.5,0.00051506,120]
[381104235,1756043457352,-982.17,0.00051506,120]
[381104236,1756043457362,-480.0,0.00051506,120]
[381104237,1756043457371,-480.0,0.00051506,120]
[381104238,1756043457382,-151.0,0.00051506,120]
[381104239,1756043457391,-214.069436,0.00051506,120]
[381104240,1756043457401,-568.388731,0.00051506,120]
[381104241,1756043457411,-151.0,0.00051506,120]
[381104242,1756043457421,-214.069436,0.00051506,120]
[381104243,1756043457430,-480.0,0.00051506,120]
[381104244,1756043457440,-568.388731,0.00051506,120]
[381104245,1756043457449,-480.0,0.00051506,120]
[381104246,1756043457460,-214.069438,0.00051506,120]
[381104247,1756043457469,-480.0,0.00051506,120]
[381104248,1756043457478,-4999.31,0.00051506,120]
[381104249,1756043457487,-190.5699144,0.00051506,2]
[381104250,1756043457497,-568.388731,0.00051506,120]
[381104251,1756043457507,-480.0,0.00051506,7]
[381104252,1756043457517,-568.3887212,0.00051506,120]
[381104253,1756043457526,-729.23,0.00051506,120]
[381104254,1756043457536,-480.0,0.00051506,120]
[381104255,1756043457545,-3648.67,0.00051506,120]
[381104256,1756043457554,-480.0,0.00051506,120]
[381104257,1756043457564,-154.552239,0.0005156,15]
[381104258,1756043457574,-202.20021287,0.00051779,60]
[381104259,1756043457584,-480.0,0.0005178,120]
[381104260,1756043457594,-480.0,0.0005178,120]
[381104261,1756043457604,-480.0,0.0005178,120]
[381104262,1756043457613,-480.0,0.0005178,120]
[381104263,1756043457623,-480.0,0.0005178,120]
[381104264,1756043457633,-480.0,0.0005178,120]
[381104265,1756043457642,-480.0,0.0005178,30]
[381104266,1756043457652,-480.0,0.0005178,120]
[381104267,1756043457661,-480.0,0.0005178,120]
[381104268,1756043457671,-480.0,0.0005178,120]
[381104269,1756043457680,-480.0,0.0005178,120]
[381104270,1756043457690,-480.0,0.0005178,120]
[381104271,1756043457699,-480.0,0.0005178,120]
[381104272,1756043457709,-480.0,0.0005178,120]
[381104273,1756043457718,-480.0,0.0005178,120]
[381104274,1756043457728,-2312.32,0.0005178,120]
[381104275,1756043457737,-480.0,0.0005178,120]
[381104276,1756043457747,-480.0,0.0005178,120]
[381104277,1756043457758,-480.0,0.0005178,120]
[381104278,1756043457768,-480.0,0.0005178,120]
[381104279,1756043457777,-204.91207204,0.0005178,120]
[381104280,1756043457786,-1014.78,0.0005178,120]
[381104281,1756043457796,-480.0,0.0005178,120]
[381104282,1756043457805,-480.0,0.0005178,120]
[381104283,1756043457814,-480.0,0.0005178,120]
[381104284,1756043457823,-512.99,0.0005178,120]
[381104285,1756043457833,-630.65,0.0005178,120]
[381104286,1756043457842,-480.0,0.0005178,120]
[381104287,1756043457851,-480.0,0.0005178,120]
[381104288,1756043457860,-480.0,0.0005178,120]
[381104289,1756043457870,-1748.16,0.0005178,120]
[381104290,1756043457879,-480.0,0.0005178,120]
[381104291,1756043457888,-318.58886141,0.0005178,120]
[381104292,1756043457898,-911.54,0.0005178,120]
[381104293,1756043457908,-480.0,0.0005178,120]
[381104294,1756043457917,-462.20848139,0.0005178,120]
[381104295,1756043457927,-480.0,0.0005178,120]
[381104296,1756043457936,-2118.42,0.0005178,120]
[381104297,1756043457947,-480.0,0.0005178,120]
[381104298,1756043457956,-480.0,0.0005178,120]
[381104299,1756043457966,-1747.19,0.0005178,120]
[381104300,1756043457975,-480.0,0.0005178,120]
[381104301,1756043457984,-1433.15,0.0005178,120]
[381104302,1756043457993,-480.0,0.0005178,120]
[381104303,1756043458002,-480.0,0.0005178,120]